bitfinex/quotes_SOLUSD_20230110
["timestamp","ask_amount","ask_price","bid_price","bid_amount"]
[1673390768490,20.0,16.297,16.283,17.0]
[1673390768905,46.04,16.298,16.284,20.0]
[1673390769117,94.41455982,16.303,16.284,20.0]
[1673390769118,46.03,16.301,16.284,20.0]
[1673390769431,46.03,16.302,16.285,17.0]
[1673390769964,46.03,16.302,16.287,20.0]
[1673390770287,46.02,16.305,16.287,20.0]
[1673390770483,20.0,16.304,16.287,20.0]
[1673390770806,46.03,16.303,16.287,20.0]
[1673390772162,17.0,16.299,16.287,20.0]
[1673390775449,20.0,16.305,16.287,20.0]
[1673390775635,46.02,16.304,16.287,20.0]
[1673390778076,46.02,16.304,16.288,17.0]
[1673390778290,20.0,16.306,16.289,20.0]
[1673390778495,46.02,16.305,16.289,20.0]
[1673390778690,20.0,16.304,16.288,17.0]
[1673390780621,46.02,16.305,16.288,17.0]
[1673390780809,46.02,16.305,16.289,20.0]
[1673390781331,46.02,16.305,16.291,20.0]
[1673390781541,20.0,16.307,16.291,20.0]
[1673390781542,46.02,16.306,16.291,16.31348712]
[1673390782181,46.02,16.306,16.293,20.0]
[1673390782369,46.02,16.307,16.293,20.0]
[1673390782804,20.0,16.313,16.293,20.0]
[1673390783012,46.0,16.312,16.293,20.0]
[1673390783232,20.0,16.311,16.293,20.0]
[1673390783545,20.0,16.309,16.293,20.0]
[1673390783735,46.01,16.308,16.293,20.0]
[1673390784614,46.01,16.31,16.293,20.0]
[1673390785342,20.0,16.309,16.293,20.0]
[1673390786184,46.01,16.308,16.293,20.0]
[1673390788598,20.0,16.307,16.293,20.0]
[1673390788931,46.02,16.306,16.293,20.0]
[1673390789657,46.01,16.308,16.293,20.0]
[1673390794699,20.0,16.307,16.293,20.0]
[1673390794890,46.02,16.306,16.293,20.0]
[1673390798049,20.0,16.307,16.293,20.0]
[1673390798587,46.01,16.308,16.293,20.0]
[1673390806159,46.01,16.308,16.3,4.0020239]
[1673390806364,17.0,16.307,16.3,4.0020239]
[1673390806587,46.02,16.306,16.3,4.0020239]
[1673390806770,17.0,16.305,16.3,4.0020239]
[1673390822045,17.0,16.305,16.3,14.0020239]
[1673390842354,46.0,16.311,16.3,14.0020239]
[1673390842563,46.0,16.313,16.3,14.0020239]
[1673390842884,46.0,16.314,16.3,14.0020239]
[1673390843088,20.0,16.313,16.3,14.0020239]
[1673390843616,20.0,16.315,16.3,14.0020239]
[1673390843806,46.0,16.314,16.301,20.0]
[1673390844017,20.0,16.313,16.301,20.0]
[1673390844242,46.0,16.314,16.301,20.0]
[1673390844472,45.99,16.316,16.302,20.0]
[1673390844691,17.0,16.315,16.303,20.0]
[1673390848452,45.98,16.318,16.303,20.0]
[1673390848665,20.0,16.319,16.303,20.0]
[1673390848984,45.98,16.318,16.303,20.0]
[1673390849934,17.0,16.317,16.303,20.0]
[1673390850146,45.99,16.316,16.303,20.0]
[1673390850339,17.0,16.315,16.303,20.0]
[1673390852356,16.5,16.315,16.303,20.0]
[1673390853190,45.98,16.319,16.303,20.0]
[1673390853400,45.98,16.32,16.303,20.0]
[1673390854967,17.0,16.319,16.305,20.0]
[1673390855181,45.98,16.318,16.307,20.0]
[1673390855495,17.0,16.317,16.307,20.0]
[1673390858019,17.0,16.317,16.31,10.0]
[1673390862751,45.97,16.323,16.311,20.0]
[1673390863071,5.9979761,16.324,16.311,20.0]
[1673390863072,5.9979761,16.324,16.313,20.0]
[1673390864731,17.0,16.323,16.313,20.0]
[1673390870116,5.9979761,16.324,16.313,20.0]
[1673390871248,5.9979761,16.324,16.315,22.82569382]
[1673390871458,5.9979761,16.324,16.316,17.0]
[1673390871986,5.9979761,16.324,16.318,20.0]
[1673390872610,45.95,16.332,16.318,20.0]
[1673390872822,45.94,16.333,16.32,20.0]
[1673390873030,45.94,16.334,16.321,3.0744512]
[1673390873576,20.0,16.333,16.321,3.0744512]
[1673390874206,45.93,16.338,16.321,3.0744512]
[1673390874207,18.55825296,16.335,16.321,3.0744512]
[1673390874415,65.94,16.334,16.321,3.0744512]
[1673390874727,84.49825296,16.334,16.321,3.0744512]
[1673390874942,17.0,16.333,16.321,3.0744512]
[1673390875134,45.95,16.332,16.321,3.0744512]
[1673390875343,17.0,16.331,16.321,3.0744512]
[1673390875788,45.94,16.333,16.321,3.0744512]
[1673390875789,17.0,16.332,16.321,3.0744512]
[1673390875997,45.95,16.331,16.321,3.0744512]
[1673390876181,17.0,16.33,16.321,3.0744512]
[1673390876842,45.95,16.329,16.321,3.0744512]
[1673390877031,17.0,16.328,16.321,3.0744512]
[1673390880740,17.0,16.328,16.32,3.0744512]
[1673390882007,17.0,16.328,16.32,23.0744512]
[1673390891259,45.94,16.333,16.32,23.0744512]
[1673390892727,17.0,16.332,16.32,23.0744512]
[1673390894100,45.95,16.331,16.32,23.0744512]
[1673390894295,17.0,16.33,16.32,23.0744512]
[1673390896819,62.95,16.331,16.32,23.0744512]
[1673390899358,62.95,16.331,16.321,20.0]
[1673390899560,17.0,16.331,16.322,23.0744512]
[1673390899877,17.0,16.331,16.323,3.0744512]
[1673390900091,17.0,16.331,16.322,20.0]
[1673390900279,17.0,16.331,16.323,20.0]
[1673390901586,17.0,16.331,16.322,20.0]
[1673390901587,35.55825296,16.331,16.322,20.0]
[1673390901775,45.95,16.33,16.323,1.68872475]
[1673390901994,17.0,16.329,16.323,1.68872475]
[1673390902202,17.0,16.329,16.322,20.0]
[1673390905459,17.0,16.33,16.322,20.0]
[1673390906841,62.95,16.33,16.322,20.0]
[1673390907159,17.0,16.33,16.322,20.0]
[1673390913265,17.0,16.331,16.322,20.0]
[1673390915366,17.0,16.331,16.32,20.0]
[1673390916204,81.50825296,16.331,16.32,20.0]
[1673390916428,35.55825296,16.331,16.32,20.0]
[1673390918007,45.94,16.334,16.32,20.0]
[1673390918225,20.0,16.333,16.321,1.92603073]
[1673390918532,20.0,16.333,16.32,20.0]
[1673390918750,65.93,16.338,16.32,20.0]
[1673390920412,17.0,16.337,16.322,20.0]
[1673390920628,17.0,16.337,16.323,21.74159941]
[1673390920957,17.0,16.337,16.324,20.0]
[1673390924412,45.92,16.341,16.324,20.0]
[1673390924621,18.55825296,16.342,16.325,117.2185]
[1673390924835,45.92,16.341,16.326,138.9162]
[1673390925035,45.91,16.343,16.326,138.9162]
[1673390926837,17.0,16.342,16.326,138.9162]
[1673390930182,17.0,16.343,16.326,138.9162]
[1673390931489,18.55825296,16.342,16.326,138.9162]
[1673390931693,17.0,16.341,16.326,138.9162]
[1673390934104,17.0,16.342,16.326,138.9162]
[1673390934649,18.55825296,16.341,16.326,138.9162]
[1673390934866,17.0,16.34,16.326,138.9162]
[1673390937834,35.55825296,16.34,16.326,138.9162]
[1673390945525,117.8238,16.344,16.326,138.9162]
[1673390945702,20.0,16.343,16.326,138.9162]
[1673390946265,38.55825296,16.343,16.326,138.9162]
[1673390946422,18.55825296,16.342,16.326,138.9162]
[1673390946908,17.0,16.341,16.326,138.9162]
[1673390947269,35.55825296,16.341,16.326,138.9162]
[1673390948862,20.0,16.343,16.326,138.9162]
[1673390949087,20.0,16.343,16.328,20.0]
[1673390949714,20.0,16.346,16.328,20.0]
[1673390950227,17.0,16.345,16.328,20.0]
[1673390950655,20.0,16.344,16.328,20.0]
[1673390950871,20.0,16.344,16.329,17.0]
[1673390951088,20.0,16.344,16.328,20.0]
[1673390951270,20.0,16.346,16.328,20.0]
[1673390952320,17.0,16.345,16.329,37.0]
[1673390952540,24.55622906,16.348,16.33,20.0]
[1673390952864,24.55622906,16.348,16.331,20.0]
[1673390953178,24.55622906,16.348,16.332,110.872]
[1673390953390,24.55622906,16.348,16.333,40.0]
[1673390953900,17.0,16.347,16.333,40.0]
[1673390954733,24.55622906,16.348,16.333,40.0]
[1673390956330,17.0,16.347,16.333,40.0]
[1673390956857,18.55825296,16.346,16.333,40.0]
[1673390957196,17.0,16.345,16.333,40.0]
[1673390959154,18.55825296,16.346,16.333,40.0]
[1673390959795,5.9979761,16.348,16.333,40.0]
[1673390960832,24.55622906,16.348,16.333,40.0]
[1673390961581,17.0,16.347,16.333,40.0]
[1673390962406,18.55825296,16.346,16.333,40.0]
[1673390962721,17.0,16.345,16.333,40.0]
[1673390963139,17.0,16.346,16.333,40.0]
[1673390967549,17.0,16.347,16.333,40.0]
[1673390967763,5.9979761,16.348,16.333,40.0]
[1673390967977,24.55622906,16.348,16.333,40.0]
[1673390969462,17.0,16.347,16.333,40.0]
[1673390970719,35.55825296,16.347,16.333,40.0]
[1673390971033,17.0,16.347,16.333,40.0]
[1673390971648,17.0,16.347,16.333,20.0]
[1673390971866,20.0,16.346,16.333,20.0]
[1673390972171,17.0,16.345,16.333,20.0]
[1673390972385,35.55825296,16.347,16.333,20.0]
[1673390972904,81.45825296,16.347,16.333,20.0]
[1673390973325,81.45825296,16.347,16.333,40.0]
[1673390973537,17.0,16.347,16.333,40.0]
[1673390975007,17.0,16.347,16.333,20.0]
[1673390975220,35.55825296,16.347,16.333,20.0]
[1673390976606,35.55825296,16.347,16.334,20.0]
[1673390976920,17.0,16.347,16.334,20.0]
[1673390977104,17.0,16.347,16.335,115.1987]
[1673390985113,17.0,16.347,16.336,20.0]
[1673390989525,17.0,16.347,16.335,115.1987]
[1673390992998,17.0,16.347,16.336,20.0]
[1673391003516,70.66671475,16.347,16.336,20.0]
[1673391014750,116.56671475,16.347,16.336,20.0]
[1673391027379,116.44746349,16.347,16.336,20.0]
[1673391039879,116.44746349,16.347,16.335,115.1987]
[1673391042320,116.44746349,16.347,16.334,20.0]
[1673391043368,116.44746349,16.347,16.33,20.0]
[1673391043570,40.0,16.346,16.33,20.0]
[1673391043890,62.91,16.345,16.33,20.0]
[1673391044108,20.0,16.344,16.33,20.0]
[1673391044313,62.91,16.343,16.33,20.0]
[1673391044514,62.91,16.343,16.328,20.0]
[1673391045577,45.91,16.343,16.328,20.0]
[1673391045886,45.9,16.347,16.33,17.0]
[1673391046100,5.9979761,16.348,16.332,20.0]
[1673391046307,5.9979761,16.348,16.333,156.4274]
[1673391046522,5.9979761,16.348,16.334,20.0]
[1673391046736,5.9979761,16.348,16.336,20.0]
[1673391047260,5.9979761,16.348,16.336,27.27555725]
[1673391047463,17.0,16.347,16.336,20.0]
[1673391048814,70.66671475,16.347,16.336,20.0]
[1673391049154,53.66671475,16.347,16.336,27.27555725]
[1673391049568,53.66671475,16.347,16.336,20.0]
[1673391049767,99.56671475,16.347,16.336,20.0]
[1673391050839,17.0,16.346,16.336,20.0]
[1673391051567,17.0,16.347,16.336,20.0]
[1673391053044,62.9,16.347,16.336,20.0]
[1673391054403,62.9,16.347,16.336,19.93004014]
[1673391054605,76.37954314,16.347,16.336,19.93004014]
[1673391054924,116.56671475,16.347,16.336,19.93004014]
[1673391058381,116.56671475,16.347,16.335,114.4265]
[1673391058812,116.56671475,16.347,16.333,20.0]
[1673391059035,116.56671475,16.347,16.331,20.0]
[1673391059243,116.56671475,16.347,16.328,116.6678]
[1673391059244,20.0,16.346,16.328,116.6678]
[1673391059563,266.81,16.345,16.315,20.0]
[1673391059757,20.0,16.344,16.322,136.6678]
[1673391059961,82.91,16.343,16.322,136.6678]
[1673391060171,20.0,16.342,16.322,136.6678]
[1673391060401,62.92,16.341,16.322,136.6678]
[1673391060594,20.0,16.34,16.322,136.6678]
[1673391060799,62.93,16.339,16.322,136.6678]
[1673391061220,62.93,16.339,16.322,143.94335725]
[1673391061429,62.93,16.339,16.323,27.27555725]
[1673391062609,45.93,16.339,16.323,27.27555725]
[1673391062810,45.92,16.341,16.323,27.27555725]
[1673391063217,45.92,16.342,16.324,7.27555725]
[1673391063868,17.0,16.341,16.324,7.27555725]
[1673391064191,45.92,16.34,16.324,7.27555725]
[1673391064381,17.0,16.339,16.324,7.27555725]
[1673391064590,45.93,16.338,16.324,7.27555725]
[1673391064802,17.0,16.337,16.324,7.27555725]
[1673391065009,45.93,16.336,16.324,7.27555725]
[1673391065213,45.92,16.342,16.324,7.27555725]
[1673391065848,45.92,16.342,16.325,17.0]
[1673391066078,45.92,16.342,16.326,20.0]
[1673391066270,45.92,16.342,16.326,136.89319433]
[1673391066479,45.92,16.342,16.327,7.61899433]
[1673391067129,17.0,16.341,16.327,7.61899433]
[1673391067349,45.92,16.34,16.327,7.61899433]
[1673391067855,17.0,16.341,16.328,20.0]
[1673391068060,45.9,16.347,16.329,20.0]
[1673391068274,45.9,16.347,16.33,20.0]
[1673391068498,45.9,16.347,16.33,27.61899433]
[1673391068694,45.9,16.347,16.332,20.0]
[1673391068904,45.9,16.347,16.333,20.0]
[1673391069228,45.9,16.347,16.334,20.0]
[1673391069443,17.0,16.346,16.334,27.61899433]
[1673391069963,70.66671475,16.346,16.334,27.61899433]
[1673391070287,70.66671475,16.346,16.336,20.0]
[1673391071732,45.91,16.345,16.336,20.0]
[1673391072366,99.57671475,16.345,16.336,20.0]
[1673391073548,53.66671475,16.345,16.336,20.0]
[1673391074259,53.66671475,16.345,16.337,7.61899433]
[1673391074890,53.66671475,16.345,16.336,20.0]
[1673391075108,53.66671475,16.345,16.335,111.3608]
[1673391075323,45.91,16.344,16.335,111.3608]
[1673391075748,17.0,16.343,16.335,111.3608]
[1673391076701,17.0,16.343,16.336,20.0]
[1673391077749,45.9,16.347,16.336,20.0]
[1673391077974,17.0,16.346,16.336,20.0]
[1673391078147,45.91,16.345,16.336,20.0]
[1673391078358,17.0,16.344,16.336,20.0]
[1673391081753,70.66671475,16.344,16.336,20.0]
[1673391086993,45.91,16.343,16.336,20.0]
[1673391087206,17.0,16.342,16.336,20.0]
[1673391087520,17.0,16.344,16.336,20.0]
[1673391090880,17.0,16.344,16.335,111.3608]
[1673391091413,45.91,16.343,16.335,111.3608]
[1673391091723,17.0,16.342,16.335,111.3608]
[1673391093281,17.0,16.342,16.336,20.0]
[1673391093815,45.92,16.341,16.336,20.0]
[1673391094030,17.0,16.34,16.335,111.3608]
[1673391094228,17.0,16.342,16.335,111.3608]
[1673391095911,17.0,16.342,16.332,20.0]
[1673391097821,45.92,16.341,16.332,20.0]
[1673391098132,17.0,16.34,16.332,20.0]
[1673391099497,17.0,16.34,16.33,20.0]
[1673391100433,17.0,16.34,16.329,116.8578]
[1673391100746,45.93,16.339,16.329,116.8578]
[1673391100966,17.0,16.338,16.329,116.8578]
[1673391101366,17.0,16.339,16.329,116.8578]
[1673391101578,45.93,16.338,16.329,116.8578]
[1673391101917,17.0,16.337,16.329,116.8578]
[1673391104559,17.0,16.337,16.327,20.0]
[1673391105379,62.93,16.338,16.327,20.0]
[1673391106223,17.0,16.338,16.327,20.0]
[1673391106434,17.0,16.339,16.327,20.0]
[1673391106646,45.93,16.338,16.327,20.0]
[1673391106855,17.0,16.337,16.327,20.0]
[1673391107925,62.93,16.338,16.327,20.0]
[1673391111585,62.93,16.338,16.326,129.2742]
[1673391112014,62.93,16.338,16.326,109.2742]
[1673391114554,62.93,16.338,16.327,20.0]
[1673391117574,62.93,16.338,16.326,109.2742]
[1673391119162,62.93,16.338,16.324,113.1599]
[1673391119374,20.0,16.336,16.32,20.0]
[1673391119588,82.94,16.335,16.32,20.0]
[1673391121694,20.0,16.334,16.32,20.0]
[1673391122002,82.94,16.333,16.32,20.0]
[1673391122234,62.94,16.333,16.32,20.0]
[1673391130731,62.94,16.333,16.317,132.8257]
[1673391130939,20.0,16.332,16.317,132.8257]
[1673391131163,62.95,16.331,16.317,132.8257]
[1673391136537,20.0,16.33,16.317,112.8257]
[1673391136752,62.95,16.329,16.317,112.8257]
[1673391139675,62.95,16.329,16.318,20.0]
[1673391142950,17.0,16.329,16.318,20.0]
[1673391147355,45.96,16.328,16.318,20.0]
[1673391147566,17.0,16.327,16.318,20.0]
[1673391153678,45.96,16.326,16.318,20.0]
[1673391153886,17.0,16.325,16.318,20.0]
[1673391159569,17.0,16.325,16.317,112.8257]
[1673391169130,45.97,16.324,16.317,112.8257]
[1673391169444,17.0,16.323,16.317,112.8257]
[1673391172168,17.0,16.323,16.316,116.8195]
[1673391174590,17.0,16.323,16.313,20.0]
[1673391175748,17.0,16.324,16.313,20.0]
[1673391175962,65.97,16.323,16.313,20.0]
[1673391176284,17.0,16.322,16.313,20.0]
[1673391176697,17.0,16.322,16.31,119.4368]
[1673391177021,20.0,16.32,16.31,10.0]
[1673391177217,62.98,16.319,16.31,10.0]
[1673391180161,45.98,16.319,16.31,10.0]
[1673391180490,45.98,16.321,16.31,10.0]
[1673391180683,45.98,16.321,16.311,20.0]
[1673391181622,17.0,16.32,16.311,20.0]
[1673391182165,45.98,16.321,16.311,20.0]
[1673391182480,36.90603955,16.322,16.311,20.0]
[1673391182481,82.87603955,16.322,16.311,20.0]
[1673391183843,17.0,16.321,16.311,20.0]
[1673391188262,45.94,16.333,16.312,20.0]
[1673391188464,20.0,16.332,16.313,20.0]
[1673391188684,45.95,16.331,16.313,20.0]
[1673391189715,45.94,16.334,16.313,27.61899433]
[1673391189941,20.0,16.333,16.313,27.61899433]
[1673391190147,45.95,16.332,16.313,27.61899433]
[1673391190673,45.95,16.332,16.315,20.0]
[1673391190888,45.95,16.332,16.316,108.4584]
[1673391191084,20.0,16.333,16.316,108.4584]
[1673391191299,20.0,16.335,16.318,20.0]
[1673391191499,45.94,16.334,16.318,20.0]
[1673391191725,87.98866124,16.337,16.318,20.0]
[1673391191946,45.93,16.337,16.319,27.61899433]
[1673391192130,45.92,16.341,16.32,20.0]
[1673391192340,45.92,16.341,16.321,20.0]
[1673391192550,45.92,16.341,16.322,20.0]
[1673391192764,99.58671475,16.341,16.323,134.3753]
[1673391193084,17.0,16.34,16.324,20.0]
[1673391193289,45.93,16.339,16.324,20.0]
[1673391193723,53.66671475,16.341,16.324,20.0]
[1673391193724,45.92,16.34,16.324,20.0]
[1673391194867,17.0,16.339,16.324,20.0]
[1673391195076,45.93,16.338,16.324,20.0]
[1673391195292,17.0,16.337,16.324,20.0]
[1673391196357,17.0,16.337,16.324,27.61899433]
[1673391197400,53.66671475,16.341,16.324,27.61899433]
[1673391198857,17.0,16.34,16.324,27.61899433]
[1673391201607,17.0,16.34,16.326,20.0]
[1673391201819,53.66671475,16.341,16.326,136.2255]
[1673391202144,53.66671475,16.341,16.327,37.0]
[1673391202667,53.66671475,16.341,16.328,27.61899433]
[1673391202979,53.66671475,16.341,16.329,27.61899433]
[1673391203297,53.66671475,16.341,16.331,20.0]
[1673391203611,53.66671475,16.341,16.333,20.0]
[1673391218234,53.66671475,16.341,16.335,20.0]
[1673391218435,53.66671475,16.341,16.336,17.0]
[1673391218651,53.66671475,16.341,16.337,20.0]
[1673391218847,5.9979761,16.348,16.337,20.0]
[1673391228627,5.9979761,16.348,16.338,1.58104457]
[1673391228837,5.9979761,16.348,16.34,25.53]
[1673391230115,5.9979761,16.348,16.341,20.0]
[1673391242297,5.9979761,16.348,16.341,27.61899433]
[1673391242516,5.9979761,16.348,16.343,20.0]
[1673391288397,45.87,16.358,16.35,58.0614639]
[1673391288616,17.0,16.352,16.35,58.0614639]
[1673391294911,45.87,16.359,16.344,1.561742]
[1673391295124,45.87,16.359,16.343,20.0]
[1673391295339,20.0,16.358,16.343,20.0]
[1673391295540,45.88,16.357,16.343,20.0]
[1673391296898,17.0,16.356,16.343,20.0]
[1673391297112,45.88,16.355,16.343,20.0]
[1673391297319,17.0,16.354,16.343,20.0]
[1673391301858,17.0,16.354,16.341,20.0]
[1673391302047,65.89,16.353,16.341,20.0]
[1673391302258,61.44,16.351,16.341,20.0]
[1673391302486,78.44,16.35,16.341,20.0]
[1673391302801,17.0,16.35,16.336,129.4635]
[1673391303007,78.44,16.35,16.336,129.4635]
[1673391303220,45.9,16.349,16.336,129.4635]
[1673391303539,17.0,16.348,16.336,129.4635]
[1673391304361,17.0,16.349,16.336,129.4635]
[1673391305533,62.9,16.349,16.336,129.4635]
[1673391306584,17.0,16.349,16.336,129.4635]
[1673391306799,45.9,16.348,16.336,129.4635]
[1673391307109,17.0,16.347,16.336,129.4635]
[1673391307323,17.0,16.349,16.336,129.4635]
[1673391309522,62.9,16.349,16.336,129.4635]
[1673391310474,122.29425542,16.349,16.336,129.4635]
[1673391317514,122.29425542,16.349,16.321,20.0]
[1673391317515,20.0,16.348,16.321,20.0]
[1673391317833,20.0,16.348,16.325,118.3292]
[1673391317834,140.85250838,16.347,16.325,118.3292]
[1673391318021,40.0,16.346,16.325,118.3292]
[1673391318231,20.0,16.344,16.325,118.3292]
[1673391318442,61.44,16.342,16.325,118.3292]
[1673391318657,61.44,16.34,16.325,118.3292]
[1673391318987,61.44,16.338,16.325,118.3292]
[1673391319201,17.0,16.337,16.325,118.3292]
[1673391322761,17.0,16.337,16.321,20.0]
[1673391322762,17.0,16.337,16.326,116.2255]
[1673391322980,45.93,16.336,16.321,20.0]
[1673391323168,17.0,16.335,16.322,20.0]
[1673391323378,45.94,16.334,16.322,20.0]
[1673391323583,17.0,16.333,16.322,20.0]
[1673391335694,17.0,16.334,16.322,20.0]
[1673391335907,45.94,16.333,16.322,20.0]
[1673391336236,17.0,16.332,16.322,20.0]
[1673391341162,17.0,16.332,16.321,20.0]
[1673391341374,17.0,16.332,16.32,20.0]
[1673391341375,107.39,16.331,16.32,20.0]
[1673391341592,17.0,16.33,16.32,20.0]
[1673391343684,62.95,16.331,16.319,118.8273]
[1673391344000,124.39,16.331,16.319,118.8273]
[1673391344847,20.0,16.33,16.317,110.4883]
[1673391345060,62.95,16.329,16.317,110.4883]
[1673391345792,62.95,16.329,16.31,35.74]
[1673391346003,81.44,16.327,16.31,10.0]
[1673391346208,61.44,16.325,16.31,10.0]
[1673391346424,124.41,16.324,16.31,10.0]
[1673391346635,20.0,16.323,16.31,10.0]
[1673391346843,17.0,16.322,16.31,10.0]
[1673391348102,62.97,16.322,16.31,10.0]
[1673391348952,20.0,16.321,16.31,10.0]
[1673391349269,62.98,16.32,16.31,10.0]
[1673391349582,45.98,16.32,16.31,10.0]
[1673391349789,17.0,16.319,16.31,10.0]
[1673391350106,45.98,16.318,16.31,10.0]
[1673391350314,17.0,16.317,16.31,10.0]
[1673391356397,45.99,16.316,16.31,10.0]
[1673391356619,17.0,16.315,16.31,10.0]
[1673391356926,45.99,16.316,16.31,10.0]
[1673391357141,17.0,16.315,16.31,10.0]
[1673391358500,17.0,16.316,16.31,10.0]
[1673391358929,17.0,16.316,16.31,6.0]
[1673391359260,17.0,16.316,16.31,2.0]
[1673391359436,17.0,16.316,16.308,116.2851]
[1673391360610,17.0,16.316,16.303,20.0]
[1673391360823,20.0,16.316,16.303,20.0]
[1673391361005,62.99,16.315,16.303,20.0]
[1673391361763,17.0,16.315,16.303,20.0]
[1673391361968,17.0,16.316,16.303,20.0]
[1673391362177,45.99,16.315,16.303,20.0]
[1673391362396,17.0,16.314,16.303,20.0]
[1673391362902,62.99,16.315,16.303,20.0]
[1673391363112,17.0,16.315,16.303,20.0]
[1673391363332,17.0,16.316,16.303,20.0]
[1673391363544,61.44,16.314,16.303,20.0]
[1673391363758,61.44,16.312,16.303,20.0]
[1673391364270,61.44,16.31,16.303,20.0]
[1673391364690,17.0,16.309,16.303,20.0]
[1673391370504,20.0,16.307,16.3,4.0020239]
[1673391370712,46.02,16.306,16.3,4.0020239]
[1673391370927,17.0,16.305,16.3,4.0020239]
[1673391372919,17.0,16.306,16.3,4.0020239]
[1673391374281,63.02,16.307,16.3,4.0020239]
[1673391374809,17.0,16.307,16.3,4.0020239]
[1673391375017,17.0,16.308,16.3,4.0020239]
[1673391375217,46.02,16.307,16.3,4.0020239]
[1673391375420,17.0,16.306,16.3,4.0020239]
[1673391395843,61.44,16.313,16.3,4.0020239]
[1673391396053,61.44,16.311,16.3,4.0020239]
[1673391396244,124.45,16.31,16.3,4.0020239]
[1673391396459,17.0,16.309,16.3,4.0020239]
[1673391403524,46.01,16.308,16.3,4.0020239]
[1673391403839,17.0,16.307,16.3,4.0020239]
[1673391404888,17.0,16.308,16.3,4.0020239]
[1673391405073,46.02,16.307,16.3,4.0020239]
[1673391405279,17.0,16.306,16.3,4.0020239]
[1673391405704,46.02,16.305,16.3,4.0020239]
[1673391405936,17.0,16.304,16.3,4.0020239]
[1673391408987,46.01,16.309,16.3,4.0020239]
[1673391409514,107.44,16.314,16.3,4.0020239]
[1673391409915,61.44,16.312,16.3,4.0020239]
[1673391410122,61.44,16.31,16.3,4.0020239]
[1673391410333,63.01,16.309,16.3,4.0020239]
[1673391431043,46.01,16.309,16.3,4.0020239]
[1673391431249,61.44,16.31,16.3,4.0020239]
[1673391431459,46.01,16.309,16.3,4.0020239]
[1673391432617,61.44,16.312,16.3,4.0020239]
[1673391432828,61.44,16.31,16.3,4.0020239]
[1673391433038,46.01,16.309,16.3,4.0020239]
[1673391434104,61.44,16.312,16.3,4.0020239]
[1673391434317,61.44,16.31,16.3,4.0020239]
[1673391434512,63.01,16.309,16.3,4.0020239]